lending/lending_fUSD_20241229
["ID","MTS","AMOUNT","RATE_DAILY","PERIOD"]
[347084098,1735491065452,-500.0,0.00013699,2]
[347084099,1735491065462,-283.33274883,0.00013699,2]
[347084100,1735491065472,-150.0,0.0001372,2]
[347084101,1735491065482,-1159.18,0.00013727,2]
[347084102,1735491065492,-500.0,0.00013727,2]
[347084103,1735491065502,-500.0,0.00013727,2]
[347084104,1735491065512,-629.61576152,0.00013727,2]
[347084105,1735491065522,-520.55,0.00013727,2]
[347084106,1735491065532,-500.0,0.00013727,2]
[347084107,1735491065541,-500.0,0.00013727,2]
[347084108,1735491065551,-500.0,0.00013727,2]
[347084109,1735491065561,-500.0,0.00013727,2]
[347084110,1735491065571,-705.2,0.00013727,2]
[347084111,1735491065581,-500.0,0.00013727,2]
[347084112,1735491065590,-150.701539,0.00013727,2]
[347084113,1735491065599,-530.55000001,0.00013727,2]
[347084114,1735491065609,-2192.36,0.00013727,2]
[347084115,1735491065618,-500.0,0.00013727,2]
[347084116,1735491065628,-500.0,0.00013727,2]
[347084117,1735491065637,-2173.71,0.00013727,2]
[347084118,1735491065647,-1409.21,0.00013727,2]
[347084119,1735491065657,-1775.22,0.00013727,2]
[347084120,1735491065665,-500.0,0.00013727,2]
[347084121,1735491065675,-474.01862825,0.00013727,2]
[347084122,1735491065685,-500.0,0.00013727,2]
[347084123,1735491065694,-500.0,0.00013727,2]
[347084124,1735491065704,-500.0,0.00013727,2]
[347084125,1735491065714,-500.0,0.00013727,2]
[347084126,1735491065725,-500.0,0.00013727,2]
[347084127,1735491065734,-2866.13,0.00013727,2]
[347084128,1735491065744,-500.0,0.00013727,2]
[347084129,1735491065754,-500.0,0.00013727,2]
[347084130,1735491065764,-500.0,0.00013727,2]
[347084131,1735491065774,-500.0,0.00013727,2]
[347084132,1735491065783,-500.0,0.00013727,2]
[347084133,1735491065793,-500.0,0.00013727,2]
[347084134,1735491065803,-500.0,0.00013727,2]
[347084135,1735491065812,-500.0,0.00013727,2]
[347084136,1735491065822,-500.0,0.00013727,2]
[347084137,1735491065832,-500.0,0.00013727,2]
[347084138,1735491065841,-500.0,0.00013727,2]
[347084139,1735491065851,-500.0,0.00013727,2]
[347084140,1735491065860,-1154.75,0.00013727,2]
[347084141,1735491065869,-1890.37,0.00013727,2]
[347084142,1735491065881,-781.33,0.00013727,2]
[347084143,1735491065890,-500.0,0.00013727,2]
[347084144,1735491065900,-500.0,0.00013727,2]
[347084145,1735491065910,-1791.32,0.00013727,2]
[347084146,1735491065919,-423.48402854,0.00013727,2]
[347084147,1735491065928,-500.0,0.00013727,2]
[347084148,1735491065938,-1113.85,0.00013727,2]
[347084149,1735491065947,-500.0,0.00013727,2]
[347084150,1735491065956,-500.0,0.00013727,2]
[347084151,1735491065965,-500.0,0.00013727,2]
[347084152,1735491065974,-695.21,0.00013727,2]
[347084153,1735491065984,-500.0,0.00013727,2]
[347084154,1735491065994,-500.0,0.00013727,2]
[347084155,1735491066004,-500.0,0.00013727,2]
[347084156,1735491066014,-822.12,0.00013727,2]
[347084157,1735491066023,-500.0,0.00013727,2]
[347084158,1735491066033,-500.0,0.00013727,2]
[347084159,1735491066042,-289.68059422,0.00013727,2]
[347084160,1735491066052,-577.92,0.00013727,2]
[347084161,1735491066061,-500.0,0.00013727,2]
[347084162,1735491066070,-870.38,0.00013727,2]
[347084163,1735491066081,-500.0,0.00013727,2]
[347084164,1735491066091,-500.0,0.00013727,2]
[347084165,1735491066102,-500.0,0.00013727,2]
[347084166,1735491066113,-500.0,0.00013727,2]
[347084167,1735491066122,-500.0,0.00013727,2]
[347084168,1735491066131,-500.0,0.00013727,2]
[347084169,1735491066141,-3278.13,0.00013727,2]
[347084170,1735491066150,-1015.64,0.00013727,2]
[347084171,1735491066160,-500.0,0.00013727,2]
[347084172,1735491066170,-500.0,0.00013727,2]
[347084173,1735491066180,-500.0,0.00013727,2]
[347084174,1735491066190,-500.0,0.00013727,2]
[347084175,1735491066199,-500.0,0.00013727,2]
[347084176,1735491066209,-620.96,0.00013727,2]
[347084177,1735491066218,-704.14,0.00013727,2]
[347084178,1735491066228,-1840.21,0.00013727,2]
[347084179,1735491066238,-500.0,0.00013728,2]
[347084180,1735491066247,-816.1,0.00013728,2]
[347084181,1735491066257,-500.0,0.00013728,2]
[347084182,1735491066268,-590.14,0.00013728,2]
[347084183,1735491066278,-491.01491863,0.00013728,2]
[347084184,1735491066288,-500.0,0.00013728,2]
[347084185,1735491066297,-1340.36,0.00013728,2]
[347084186,1735491066307,-762.4,0.00013728,2]
[347084187,1735491066316,-500.0,0.00013728,2]
[347084188,1735491066325,-500.0,0.00013728,2]
[347084189,1735491066335,-500.0,0.00013728,2]
[347084190,1735491066345,-500.0,0.00013728,2]
[347084191,1735491066354,-500.0,0.00013728,2]
[347084192,1735491066363,-2344.33,0.00013728,2]
[347084193,1735491066373,-909.47,0.00013728,2]
[347084194,1735491066383,-865.68,0.00013728,2]
[347084195,1735491066392,-500.0,0.00013728,2]
[347084196,1735491066402,-701.25,0.00013728,2]
[347084197,1735491066412,-500.0,0.00013728,2]
[347084198,1735491066422,-602.07,0.00013728,2]
[347084199,1735491066432,-405.71,0.00013728,2]
[347084200,1735491066441,-500.0,0.00013728,2]
[347084201,1735491066451,-500.0,0.00013728,2]
[347084202,1735491066461,-500.0,0.00013728,2]
[347084203,1735491066471,-500.0,0.00013728,2]
[347084204,1735491066480,-500.0,0.00013728,2]
[347084205,1735491066490,-500.0,0.00013728,2]
[347084206,1735491066500,-500.0,0.00013728,2]
[347084207,1735491066509,-500.0,0.00013728,2]
[347084208,1735491066520,-1953.32,0.00013728,2]
[347084209,1735491066529,-500.0,0.00013728,2]
[347084210,1735491066539,-500.0,0.00013728,2]
[347084211,1735491066549,-500.0,0.00013728,2]
[347084212,1735491066559,-500.0,0.00013728,2]
[347084213,1735491066569,-621.43,0.00013728,2]
[347084214,1735491066578,-500.0,0.00013728,2]
[347084215,1735491066588,-500.0,0.00013728,2]
[347084216,1735491066598,-873.53,0.00013728,2]
[347084217,1735491066607,-500.0,0.00013728,2]
[347084218,1735491066617,-500.0,0.00013728,2]
[347084219,1735491066627,-500.0,0.00013728,2]
[347084220,1735491066637,-722.38,0.00013728,2]
[347084221,1735491066646,-500.0,0.00013728,2]
[347084222,1735491066655,-500.0,0.00013728,2]
[347084223,1735491066665,-556.86726349,0.00013728,2]
[347084224,1735491066674,-199.14154325,0.00013728,2]
[347084225,1735491066684,-285.59176673,0.00013728,2]
[347084226,1735491066694,-2838.92,0.00013728,2]
[347084227,1735491066703,-500.0,0.00013728,2]
[347084228,1735491066712,-500.0,0.00013728,2]
[347084229,1735491066722,-3628.4,0.00013728,2]
[347084230,1735491066731,-246.88,0.00013728,2]
[347084231,1735491066741,-876.23,0.00013728,2]
[347084232,1735491066751,-3692.81,0.00013728,2]
[347084233,1735491066761,-500.0,0.00013728,2]
[347084234,1735491066771,-1101.36,0.00013728,2]
[347084235,1735491066780,-870.98,0.00013728,2]
[347084236,1735491066790,-500.0,0.00013728,2]
[347084237,1735491066799,-1348.28,0.00013728,2]
[347084238,1735491066808,-1836.05,0.00013728,2]
[347084239,1735491066818,-500.0,0.00013729,2]
[347084240,1735491066828,-999.87,0.00013729,2]
[347084241,1735491066837,-510.19,0.00013729,2]
[347084242,1735491066847,-1921.52,0.00013729,2]
[347084243,1735491066856,-546.78,0.00013729,2]
[347084244,1735491066866,-3871.1,0.00013729,2]
[347084245,1735491066875,-592.58,0.00013729,2]
[347084246,1735491066885,-513.22,0.00013729,2]
[347084247,1735491066894,-407.63,0.00013729,2]
[347084248,1735491066903,-1175.67,0.00013729,2]
[347084249,1735491066913,-500.0,0.00013729,2]
[347084250,1735491066922,-500.0,0.00013729,2]
[347084251,1735491066932,-515.44,0.0001373,2]
[347084252,1735491066942,-615.03,0.0001373,2]
[347084253,1735491066952,-500.0,0.0001373,2]
[347084254,1735491066961,-500.0,0.0001373,2]
[347084255,1735491066971,-899.47,0.0001373,2]
[347084256,1735491066981,-500.0,0.0001373,2]
[347084257,1735491066990,-815.97,0.0001373,2]
[347084258,1735491067000,-18568.48,0.0001373,2]
[347084259,1735491067010,-500.0,0.0001373,2]
[347084260,1735491067022,-545.9,0.0001373,2]
[347084261,1735491067032,-969.49,0.0001373,2]
[347084262,1735491067042,-500.0,0.0001373,2]
[347084263,1735491067051,-500.0,0.0001373,2]
[347084264,1735491067061,-1026.67,0.0001373,2]
[347084265,1735491067071,-500.0,0.0001373,2]
[347084266,1735491067081,-500.0,0.0001373,2]
[347084267,1735491067091,-2110.5,0.0001373,2]
[347084268,1735491067103,-500.0,0.0001373,2]
[347084269,1735491067112,-500.0,0.0001373,2]
[347084270,1735491067122,-500.0,0.0001373,2]
[347084271,1735491067132,-500.0,0.0001373,2]
[347084272,1735491067142,-703.26,0.0001373,2]
[347084273,1735491067153,-510.62,0.0001373,2]
[347084274,1735491067163,-500.0,0.0001373,2]
[347084275,1735491067172,-500.0,0.0001373,2]
[347084276,1735491067183,-500.0,0.0001373,2]
[347084277,1735491067193,-499.52234289,0.0001373,2]
[347084278,1735491067203,-570.93,0.0001373,2]
[347084279,1735491067213,-1499.18,0.00013731,2]
[347084280,1735491067223,-500.0,0.00013731,2]
[347084281,1735491067233,-578.37,0.00013731,2]
[347084282,1735491067243,-500.0,0.00013731,2]
[347084283,1735491067252,-500.0,0.00013731,2]
[347084284,1735491067263,-548.58,0.00013731,2]
[347084285,1735491067273,-500.0,0.00013731,2]
[347084286,1735491067283,-700.84,0.00013731,2]
[347084287,1735491067293,-2940.43,0.00013731,2]
[347084288,1735491067302,-5636.03,0.00013731,2]
[347084289,1735491067312,-556.4,0.00013731,2]
[347084290,1735491067322,-500.0,0.00013731,2]
[347084291,1735491067331,-1813.25,0.00013731,2]
[347084292,1735491067342,-640.38,0.00013731,2]
[347084293,1735491067351,-15027.68,0.00013731,2]
[347084294,1735491067361,-500.0,0.00013731,2]
[347084295,1735491067371,-500.0,0.00013731,2]
[347084296,1735491067381,-1140.36,0.00013731,2]
[347084297,1735491067391,-4325.16,0.00013732,2]
[347084298,1735491067401,-500.0,0.00013732,2]
[347084299,1735491067411,-500.0,0.00013732,2]
[347084300,1735491067422,-1186.66,0.00013732,2]
[347084301,1735491067431,-692.34,0.00013732,2]
[347084302,1735491067442,-150.0,0.00013745,2]
[347084303,1735491067452,-500.0,0.00013809,2]
[347084304,1735491067462,-150.0,0.00013809,2]
[347084305,1735491067472,-150.0,0.00013845,2]
[347084306,1735491067481,-150.0,0.00013857,2]
[347084307,1735491067491,-150.0,0.00013873,2]
[347084308,1735491067500,-150.0,0.00013897,2]
[347084309,1735491067510,-500.0,0.00013902,2]
[347084310,1735491067520,-500.0,0.00013902,2]
[347084311,1735491067530,-558.9341378,0.00013902,2]
[347084312,1735491067540,-791.71,0.00013902,2]
[347084313,1735491067550,-500.0,0.00013902,2]
[347084314,1735491067559,-500.0,0.00013902,2]
[347084315,1735491067569,-950.63,0.00013902,2]
[347084316,1735491067579,-1210.43,0.00013902,2]
[347084317,1735491067589,-399.08379024,0.00013902,2]
[347084318,1735491067599,-500.0,0.00013902,2]
[347084319,1735491067609,-500.0,0.00013902,2]
[347084320,1735491067620,-500.0,0.00013902,2]
[347084321,1735491067630,-500.0,0.00013902,2]
[347084322,1735491067640,-500.0,0.00013902,2]
[347084323,1735491067650,-527.47321964,0.00013902,2]
[347084324,1735491067660,-500.0,0.00013902,2]
[347084325,1735491067669,-500.0,0.00013902,2]
[347084326,1735491067679,-500.0,0.00013902,2]
[347084327,1735491067689,-382.81348607,0.00013902,2]
[347084328,1735491067699,-500.0,0.00013902,2]
[347084329,1735491067708,-500.0,0.00013902,2]
[347084330,1735491067718,-150.0,0.00013928,2]
[347084331,1735491067728,-150.0,0.00013936,2]
[347084332,1735491067738,-150.0,0.00013953,2]
[347084333,1735491067748,-150.0,0.00013975,2]
[347084334,1735491067757,-983.0,0.00013983,2]
[347084335,1735491067769,-500.0,0.00014,2]
[347084336,1735491067779,-197.53118368,0.00014,2]
[347084337,1735491067788,-150.0,0.00014,2]
[347084338,1735491067798,-150.0,0.00014,2]
[347084339,1735491067807,-1159.18,0.00014001,2]
[347084340,1735491067817,-500.0,0.00014001,2]
[347084341,1735491067827,-500.0,0.00014001,2]
[347084342,1735491067837,-520.55,0.00014001,2]
[347084343,1735491067847,-500.0,0.00014001,2]
[347084344,1735491067856,-236.02608075,0.00014001,2]
[347084345,1735491067865,-500.0,0.00014001,2]
[347084346,1735491067875,-252.00752377,0.00014001,2]
[347084347,1735491067885,-705.2,0.00014001,2]
[347084348,1735491067895,-622.28201164,0.00014001,2]
[347084349,1735491067905,-150.701539,0.00014001,2]
[347084350,1735491067915,-2192.36,0.00014001,2]
[347084351,1735491067924,-500.0,0.00014001,2]
[347084352,1735491067934,-500.0,0.00014001,2]
[347084353,1735491067944,-2173.71,0.00014001,2]
[347084354,1735491067954,-1409.21,0.00014001,2]
[347084355,1735491067963,-1775.22,0.00014001,2]
[347084356,1735491067972,-500.0,0.00014001,2]
[347084357,1735491067982,-500.0,0.00014001,2]
[347084358,1735491067991,-500.0,0.00014001,2]
[347084359,1735491068001,-500.0,0.00014001,2]
[347084360,1735491068013,-500.0,0.00014001,2]
[347084361,1735491068023,-500.0,0.00014001,2]
[347084362,1735491068033,-2866.13,0.00014001,2]
[347084363,1735491068043,-427.64483664,0.00014001,2]
[347084364,1735491068053,-500.0,0.00014001,2]
[347084365,1735491068063,-500.0,0.00014001,2]
[347084366,1735491068075,-500.0,0.00014001,2]
[347084367,1735491068085,-500.0,0.00014001,2]
[347084368,1735491068096,-500.0,0.00014001,2]
[347084369,1735491068110,-500.0,0.00014001,2]
[347084370,1735491068120,-500.0,0.00014001,2]
[347084371,1735491068130,-500.0,0.00014001,2]
[347084372,1735491068140,-500.0,0.00014001,2]
[347084373,1735491068150,-500.0,0.00014001,2]
[347084374,1735491068160,-508.22740807,0.00014001,2]
[347084375,1735491068170,-1154.75,0.00014001,2]
[347084376,1735491068181,-1890.37,0.00014001,2]
[347084377,1735491068191,-781.33,0.00014001,2]
[347084378,1735491068201,-308.74398002,0.00014001,2]
[347084379,1735491068211,-500.0,0.00014001,2]
[347084380,1735491068221,-1791.32,0.00014001,2]
[347084381,1735491068231,-500.0,0.00014001,2]
[347084382,1735491068241,-1113.85,0.00014001,2]
[347084383,1735491068250,-285.60542775,0.00014001,2]
[347084384,1735491068260,-500.0,0.00014001,2]
[347084385,1735491068271,-500.0,0.00014001,2]
[347084386,1735491068281,-695.21,0.00014001,2]
[347084387,1735491068291,-516.34,0.00014001,2]
[347084388,1735491068300,-500.0,0.00014001,2]
[347084389,1735491068310,-500.0,0.00014001,2]
[347084390,1735491068321,-500.0,0.00014001,2]
[347084391,1735491068330,-822.12,0.00014001,2]
[347084392,1735491068340,-500.0,0.00014001,2]
[347084393,1735491068350,-500.0,0.00014001,2]
[347084394,1735491068359,-577.92,0.00014001,2]
[347084395,1735491068368,-500.0,0.00014001,2]
[347084396,1735491068378,-870.38,0.00014001,2]
[347084397,1735491068388,-500.0,0.00014001,2]
[347084398,1735491068398,-500.0,0.00014001,2]
[347084399,1735491068408,-500.0,0.00014001,2]
[347084400,1735491068418,-625.39326849,0.00014001,2]
[347084401,1735491068428,-500.0,0.00014001,2]
[347084402,1735491068438,-500.0,0.00014001,2]
[347084403,1735491068448,-3278.13,0.00014001,2]
[347084404,1735491068458,-1015.64,0.00014001,2]
[347084405,1735491068469,-500.0,0.00014001,2]
[347084406,1735491068479,-500.0,0.00014001,2]
[347084407,1735491068490,-384.29823305,0.00014001,2]
[347084408,1735491068501,-163.88956588,0.00014001,2]
[347084409,1735491068729,-500.0,0.00014001,2]
[347084410,1735491068739,-620.96,0.00014001,2]
[347084411,1735491068749,-1840.21,0.00014001,2]
[347084412,1735491068759,-704.14,0.00014001,2]
[347084413,1735491068769,-500.0,0.00014002,2]
[347084414,1735491068778,-816.1,0.00014002,2]
[347084415,1735491068787,-500.0,0.00014002,2]
[347084416,1735491068797,-590.14,0.00014002,2]
[347084417,1735491068806,-500.0,0.00014002,2]
[347084418,1735491068815,-1340.36,0.00014002,2]
[347084419,1735491068825,-762.4,0.00014002,2]
[347084420,1735491068834,-500.0,0.00014002,2]
[347084421,1735491068843,-500.0,0.00014002,2]
[347084422,1735491068853,-500.0,0.00014002,2]
[347084423,1735491068863,-500.0,0.00014002,2]
[347084424,1735491068872,-500.0,0.00014002,2]
[347084425,1735491068882,-2344.33,0.00014002,2]
[347084426,1735491068891,-909.47,0.00014002,2]
[347084427,1735491068900,-865.68,0.00014002,2]
[347084428,1735491068910,-500.0,0.00014002,2]
[347084429,1735491068920,-701.25,0.00014002,2]
[347084430,1735491068929,-500.0,0.00014002,2]
[347084431,1735491068939,-602.07,0.00014002,2]
[347084432,1735491068948,-500.0,0.00014002,2]
[347084433,1735491068959,-500.0,0.00014002,2]
[347084434,1735491068969,-500.0,0.00014002,2]
[347084435,1735491068978,-500.0,0.00014002,2]
[347084436,1735491068988,-500.0,0.00014002,2]
[347084437,1735491068997,-500.0,0.00014002,2]
[347084438,1735491069006,-422.62,0.00014002,2]
[347084439,1735491069016,-1953.32,0.00014002,2]
[347084440,1735491069026,-225.42,0.00014002,2]
[347084441,1735491069035,-500.0,0.00014002,2]
[347084442,1735491069044,-500.0,0.00014002,2]
[347084443,1735491069054,-500.0,0.00014002,2]
[347084444,1735491069064,-621.43,0.00014002,2]
[347084445,1735491069074,-330.11862426,0.00014002,2]
[347084446,1735491069085,-500.0,0.00014002,2]
[347084447,1735491069096,-873.53,0.00014002,2]
[347084448,1735491069109,-500.0,0.00014002,2]
[347084449,1735491069118,-500.0,0.00014002,2]
[347084450,1735491069129,-500.0,0.00014002,2]
[347084451,1735491069139,-722.38,0.00014002,2]
[347084452,1735491069149,-500.0,0.00014002,2]
[347084453,1735491069158,-218.35571887,0.00014002,2]
[347084454,1735491069168,-2838.92,0.00014002,2]
[347084455,1735491069180,-500.0,0.00014002,2]
[347084456,1735491069190,-500.0,0.00014002,2]
[347084457,1735491069200,-3628.4,0.00014002,2]
[347084458,1735491069209,-876.23,0.00014002,2]
[347084459,1735491069219,-3692.81,0.00014002,2]
[347084460,1735491069228,-500.0,0.00014002,2]
[347084461,1735491069237,-1101.36,0.00014002,2]
[347084462,1735491069247,-870.98,0.00014002,2]
[347084463,1735491069256,-500.0,0.00014002,2]
[347084464,1735491069266,-1348.28,0.00014002,2]
[347084465,1735491069275,-1836.05,0.00014002,2]
[347084466,1735491069286,-500.0,0.00014003,2]
[347084467,1735491069295,-999.87,0.00014003,2]
[347084468,1735491069305,-510.19,0.00014003,2]
[347084469,1735491069314,-1921.52,0.00014003,2]
[347084470,1735491069324,-546.78,0.00014003,2]
[347084471,1735491069333,-3871.1,0.00014003,2]
[347084472,1735491069343,-592.58,0.00014003,2]
[347084473,1735491069352,-513.22,0.00014003,2]
[347084474,1735491069361,-1175.67,0.00014003,2]
[347084475,1735491069371,-500.0,0.00014003,2]
[347084476,1735491069380,-500.0,0.00014003,2]
[347084477,1735491069389,-515.44,0.00014004,2]
[347084478,1735491069399,-615.03,0.00014004,2]
[347084479,1735491069408,-500.0,0.00014004,2]
[347084480,1735491069418,-500.0,0.00014004,2]
[347084481,1735491069427,-899.47,0.00014004,2]
[347084482,1735491069437,-500.0,0.00014004,2]
[347084483,1735491069447,-815.97,0.00014004,2]
[347084484,1735491069457,-18568.48,0.00014004,2]
[347084485,1735491069467,-500.0,0.00014004,2]
[347084486,1735491069476,-545.9,0.00014004,2]
[347084487,1735491069486,-969.49,0.00014004,2]
[347084488,1735491069495,-500.0,0.00014004,2]
[347084489,1735491069505,-500.0,0.00014004,2]
[347084490,1735491069514,-1026.67,0.00014004,2]
[347084491,1735491069525,-500.0,0.00014004,2]
[347084492,1735491069535,-500.0,0.00014004,2]
[347084493,1735491069545,-2110.5,0.00014004,2]
[347084494,1735491069554,-559.01443588,0.00014004,2]
[347084495,1735491069563,-500.0,0.00014004,2]
[347084496,1735491069574,-401.27870556,0.00014004,2]
[347084497,1735491069583,-500.0,0.00014004,2]
[347084498,1735491069593,-703.26,0.00014004,2]
[347084499,1735491069603,-510.62,0.00014004,2]
[347084500,1735491069613,-500.0,0.00014004,2]
[347084501,1735491069622,-500.0,0.00014004,2]
[347084502,1735491069631,-500.0,0.00014004,2]
[347084503,1735491069641,-570.93,0.00014004,2]
[347084504,1735491069651,-1499.18,0.00014005,2]
[347084505,1735491069661,-500.0,0.00014005,2]
[347084506,1735491069670,-578.37,0.00014005,2]
[347084507,1735491069679,-500.0,0.00014005,2]
[347084508,1735491069689,-548.58,0.00014005,2]
[347084509,1735491069698,-500.0,0.00014005,2]
[347084510,1735491069708,-700.84,0.00014005,2]
[347084511,1735491069718,-2940.43,0.00014005,2]
[347084512,1735491069728,-5636.03,0.00014005,2]
[347084513,1735491069737,-556.4,0.00014005,2]
[347084514,1735491069747,-500.0,0.00014005,2]
[347084515,1735491069757,-1813.25,0.00014005,2]
[347084516,1735491069767,-640.38,0.00014005,2]
[347084517,1735491069777,-15027.68,0.00014005,2]
[347084518,1735491069786,-500.0,0.00014005,2]
[347084519,1735491069795,-500.0,0.00014005,2]
[347084520,1735491069805,-1140.36,0.00014005,2]
[347084521,1735491069814,-4325.16,0.00014006,2]
[347084522,1735491069823,-500.0,0.00014006,2]
[347084523,1735491069833,-500.0,0.00014006,2]
[347084524,1735491069842,-1186.66,0.00014006,2]
[347084525,1735491069851,-692.34,0.00014006,2]
[347084526,1735491069860,-150.0,0.00014043,2]
[347084527,1735491069870,-150.0,0.00014106,2]
[347084528,1735491069879,-471.02246097,0.00014164,2]
[347084529,1735491069888,-37051.9896,0.00014176,2]
[347084530,1735491069897,-500.0,0.00014176,2]
[347084531,1735491069908,-500.0,0.00014176,2]
[347084532,1735491069918,-791.71,0.00014176,2]
[347084533,1735491069927,-500.0,0.00014176,2]
[347084534,1735491069936,-328.32513838,0.00014176,2]
[347084535,1735491069945,-950.63,0.00014176,2]
[347084536,1735491069954,-1210.43,0.00014176,2]
[347084537,1735491069964,-500.0,0.00014176,2]
[347084538,1735491069974,-500.0,0.00014176,2]
[347084539,1735491069983,-500.0,0.00014176,2]
[347084540,1735491069993,-500.0,0.00014176,2]
[347084541,1735491070002,-500.0,0.00014176,2]
[347084542,1735491070012,-500.0,0.00014176,2]
[347084543,1735491070022,-500.0,0.00014176,2]
[347084544,1735491070031,-500.0,0.00014176,2]
[347084545,1735491070040,-500.0,0.00014176,2]
[347084546,1735491070050,-500.0,0.00014176,2]
[347084547,1735491070059,-500.0,0.00014192,2]
[347084548,1735491070069,-150.0,0.00014205,2]
[347084549,1735491070081,-1159.18,0.00014275,2]
[347084550,1735491070090,-500.0,0.00014275,2]
[347084551,1735491070101,-525.77184287,0.00014275,2]
[347084552,1735491070112,-520.55,0.00014275,2]
[347084553,1735491070121,-500.0,0.00014275,2]
[347084554,1735491070130,-615.34971903,0.00014275,2]
[347084555,1735491070139,-705.2,0.00014275,2]
[347084556,1735491070149,-150.701539,0.00014275,2]
[347084557,1735491070158,-2192.36,0.00014275,2]
[347084558,1735491070167,-500.0,0.00014275,2]
[347084559,1735491070177,-500.0,0.00014275,2]
[347084560,1735491070188,-2173.71,0.00014275,2]
[347084561,1735491070198,-1409.21,0.00014275,2]
[347084562,1735491070207,-1775.22,0.00014275,2]
[347084563,1735491070216,-500.0,0.00014275,2]
[347084564,1735491070225,-500.0,0.00014275,2]
[347084565,1735491070234,-500.0,0.00014275,2]
[347084566,1735491070244,-500.0,0.00014275,2]
[347084567,1735491070253,-500.0,0.00014275,2]
[347084568,1735491070262,-183.49697607,0.00014275,2]
[347084569,1735491070274,-2866.13,0.00014275,2]
[347084570,1735491070283,-500.0,0.00014275,2]
[347084571,1735491070292,-500.0,0.00014275,2]
[347084572,1735491070302,-500.0,0.00014275,2]
[347084573,1735491070312,-500.0,0.00014275,2]
[347084574,1735491070321,-500.0,0.00014275,2]
[347084575,1735491070331,-500.0,0.00014275,2]
[347084576,1735491070340,-500.0,0.00014275,2]
[347084577,1735491070349,-500.0,0.00014275,2]
[347084578,1735491070359,-500.0,0.00014275,2]
[347084579,1735491070368,-500.0,0.00014275,2]
[347084580,1735491070378,-1154.75,0.00014275,2]
[347084581,1735491070387,-1890.37,0.00014275,2]
[347084582,1735491070397,-781.33,0.00014275,2]
[347084583,1735491070407,-1791.32,0.00014275,2]
[347084584,1735491070416,-500.0,0.00014275,2]
[347084585,1735491070426,-535.558516,0.00014275,2]
[347084586,1735491070435,-1113.85,0.00014275,2]
[347084587,1735491070445,-445.49633836,0.00014275,2]
[347084588,1735491070454,-500.0,0.00014275,2]
[347084589,1735491070464,-695.21,0.00014275,2]
[347084590,1735491070473,-516.34,0.00014275,2]
[347084591,1735491070482,-161.58085965,0.00014275,2]
[347084592,1735491070492,-417.99634578,0.00014275,2]
[347084593,1735491070502,-822.12,0.00014275,2]
[347084594,1735491070511,-500.0,0.00014275,2]
[347084595,1735491070523,-500.0,0.00014275,2]
[347084596,1735491070533,-500.0,0.00014275,2]
[347084597,1735491070542,-577.92,0.00014275,2]